Workbook

Sheet Superpesis
B1: Hanna Mattila | E1: 27.11.1979
B2: SUPERPESIS | E2: Runkosarja | I2: Kärkilyönnit (KL), pesänvälit | P2: Ylempi loppusarja | U2: Alempi loppusarja | Z2: Arvo-ottelut ja mitalit | AF2: Runkosarjan jälkeen
B3: Vuosi | C3: Sija | D3: Seura | E3: OTT | F3: KUN | G3: LÖI | H3: TOI | I3: KL | J3: 0 > 1 | K3: 1 > 2 | L3: 2 > 3 | M3: 3 > k | N3: KL-% | P3: OTT | Q3: KUN | R3: LÖI | S3: TOI | T3: KL | U3: OTT | V3: KUN | W3: LÖI | X3: TOI | Y3: KL | Z3: IL | AA3: LL | AB3: Halli | AC3: K | AD3: H | AE3: P
B4: 1995 | D4: KK-V | F4: ykköspesis
B5: 1996 | D5: KK-V | F5: ykköspesis
B6: 1997 | D6: KK-V | F6: ykköspesis
B7: 1998 | D7: Fera | F7: ykköspesis
B8: 1999 | C8: 12. | D8: Fera | E8: 13 | F8: 2 | G8: 13 | H8: 5 | I8: 45 | J8: 10 | K8: 10 | L8: 10 | M8: =PRODUCT(F8+G8) -> 15 | N8: 52.7 % | O8: =PRODUCT(I8/N8) -> 85.38899431
B9: 2000 | C9: 7. | D9: Virkiä | E9: 13 | F9: 1 | G9: 10 | H9: 7 | I9: 38 | J9: 15 | K9: 5 | L9: 7 | M9: =PRODUCT(F9+G9) -> 11 | N9: 46.3 % | O9: =PRODUCT(I9/N9) -> 82.07343413
B10: 2001 | C10: 1. | D10: Virkiä | E10: 24 | F10: 4 | G10: 20 | H10: 22 | I10: 86 | J10: 22 | K10: 14 | L10: 26 | M10: =PRODUCT(F10+G10) -> 24 | N10: 57.0 % | O10: 150.877193 | P10: 9 | Q10: 0 | R10: 3 | S10: 7 | T10: 21 | AC10: 1 | AF10: play off
B11: 2002 | C11: 3. | D11: Virkiä | E11: 24 | F11: 4 | G11: 21 | H11: 16 | I11: 85 | J11: 21 | K11: 16 | L11: 23 | M11: =PRODUCT(F11+G11) -> 25 | N11: 61.2 % | O11: 138.8888889 | P11: 10 | Q11: 0 | R11: 1 | S11: 3 | T11: 11 | AE11: 1 | AF11: play off
B12: 2003 | D12: YPJ | F12: ykköspesis | O12: 0 | U12: 6 | V12: 2 | W12: 10 | X12: 8 | Y12: 36 | AF12: karsintasarja
B13: 2004 | C13: 9. | D13: YPJ | E13: 20 | F13: 5 | G13: 14 | H13: 20 | I13: 99 | J13: 14 | K13: 34 | L13: 32 | M13: =PRODUCT(F13+G13) -> 19 | N13: 64.7 % | O13: 153.0139104 | Z13: 1
B14: 2005 | C14: 8. | D14: YPJ | E14: 19 | F14: 3 | G14: 14 | H14: 19 | I14: 90 | J14: 15 | K14: 36 | L14: 22 | M14: =PRODUCT(F14+G14) -> 17 | N14: 55.2 % | O14: 163.0434783 | P14: 3 | Q14: 0 | R14: 2 | S14: 0 | T14: 11 | Z14: 1 | AF14: jatkosarja
B15: 2006 | D15: KaKa | F15: ykköspesis | O15: 0
B16: Yhteensä | E16: =SUM(E8:E15) -> 113 | F16: 19 | G16: 92 | H16: 89 | I16: 443 | J16: 97 | K16: 115 | L16: 120 | M16: 111 | N16: =PRODUCT(I16/O16) -> 57.3 % | O16: =SUM(O8:O15) -> 773.2858989 | P16: =SUM(P8:P15) -> 22 | Q16: 0 | R16: 6 | S16: 10 | T16: 43 | U16: 6 | V16: 2 | W16: 10 | X16: 8 | Y16: 36 | Z16: 2 | AA16: 0 | AB16: 0 | AC16: 1 | AD16: 0 | AE16: 1
B17: Pesispörssi | D17: =SUM(F16:H16)+((I16-F16-G16)/3)+(E16/3)+(Z16*25)+(AA16*25)+(AB16*10)+(AC16*25)+(AD16*20)+(AE16*15) -> 438.3
B19: URA SUPERISSA | E19: OTT | F19: KUN | G19: LÖI | H19: TOI | I19: KL | K19: ka/L | L19: ka/T | M19: ka/KL | N19: KL - % | P19: ENSIMMÄISET
B20: Runkosarja | E20: =PRODUCT(E16) -> 113 | F20: =PRODUCT(F16) -> 19 | G20: =PRODUCT(G16) -> 92 | H20: =PRODUCT(H16) -> 89 | I20: =PRODUCT(I16) -> 443 | K20: =PRODUCT((F20+G20)/E20) -> 0.98 | L20: =PRODUCT(H20/E20) -> 0.79 | M20: =PRODUCT(I20/E20) -> 3.92 | N20: =PRODUCT(N16) -> 57.3 % | O20: =PRODUCT(O16) -> 773.2858989 | P20: Ottelu | S20: 13.05. 1999 Fera - ViVe 1-0 (1-1, 4-3) | AD20: 1. ottelu | AF20: 19 v 5 kk 18 pv
B21: Ylempi loppusarja | E21: =SUM(P16) -> 22 | F21: =SUM(Q16) -> 0 | G21: =SUM(R16) -> 6 | H21: =SUM(S16) -> 10 | I21: =SUM(T16) -> 43 | K21: =PRODUCT((F21+G21)/E21) -> 0.27 | L21: =PRODUCT(H21/E21) -> 0.45 | M21: =PRODUCT(I21/E21) -> 1.95 | N21: =PRODUCT(I21/O21) -> 43.4 % | O21: 99 | P21: Lyöty juoksu | S21: 13.05. 1999 Fera - ViVe 1-0 (1-1, 4-3) | AD21: 1. ottelu | AF21: 19 v 5 kk 18 pv
B22: Alempi loppusarja | E22: =PRODUCT(U16) -> 6 | F22: =PRODUCT(V16) -> 2 | G22: =PRODUCT(W16) -> 10 | H22: =PRODUCT(X16) -> 8 | I22: =PRODUCT(Y16) -> 36 | K22: =PRODUCT((F22+G22)/E22) -> 2.00 | L22: =PRODUCT(H22/E22) -> 1.33 | M22: =PRODUCT(I22/E22) -> 6.00 | N22: =PRODUCT(I22/O22) -> 63.2 % | O22: 57 | P22: Tuotu juoksu | S22: 11.07. 1999 SiiPe - Fera 1-0 (11-3, 3-3) | AD22: 5. ottelu | AF22: 19 v 7 kk 14 pv
B23: KAIKKI | E23: =SUM(E20:E22) -> 141 | F23: =SUM(F20:F22) -> 21 | G23: =SUM(G20:G22) -> 108 | H23: =SUM(H20:H22) -> 107 | I23: =SUM(I20:I22) -> 522 | K23: =PRODUCT((F23+G23)/E23) -> 0.91 | L23: =PRODUCT(H23/E23) -> 0.76 | M23: =PRODUCT(I23/E23) -> 3.70 | N23: =PRODUCT(I23/O23) -> 56.2 % | O23: =SUM(O20:O22) -> 929.2858989 | P23: Kunnari | S23: 14.07. 1999 Fera - Manse PP 2-1 (0-1, 5-1, 4-0) | AD23: 6. ottelu | AF23: 19 v 7 kk 17 pv
B25: Seurat | D25: KK-V = Kokemäen Kova-Väki (1921), kasvattajaseura
D26: Fera = Fera, Rauma (1958)
D27: Virkiä = Lapuan Virkiä (1907)
D28: YPJ = Ylihärmän Pesis-Junkkarit (1996)
D29: KaKa = Kauhajoen Karhu (1910)

Sheet Arvo-ottelut
B1: ITÄ - LÄNSI - KORTTI
B2: Hanna Mattila | C2: 27.11.1979
B3: NAISET | C3: Itä - Länsi, tulos | D3: Joukkue | E3: Seura | G3: V | H3: T | I3: H | J3: Up. | K3: Lj. | L3: Palk. | M3: O | N3: K | O3: L | P3: T | Q3: KL | R3: 1 | S3: 2 | T3: 3 | U3: k | V3: KL-% | W3: Pelinjohtaja | X3: Yleisöä
B4: 27.06. 2004 Hyvinkää | C4: 2-0 (2-0, 8-5) | D4: Länsi | E4: YPJ | I4: 1 | J4: 2k | K4: 5 | M4: 1 | Q4: 0/0 | V4: ---- | W4: Petri Kaijansinkko | X4: 3270
B5: 23.07. 2005 Oulu | C5: 1-2 (4-3, 5-6, 0-0, 1-2) | D5: Länsi | E5: YPJ | G5: 1 | K5: jok | M5: 1 | P5: 1 | Q5: 5/7 | R5: 1/1 | S5: 1/3 | T5: 3/3 | V5: 71.4 % | W5: Jarmo Ania | X5: 2815
B6: Yhteensä | G6: =SUM(G4:G5) -> 1 | I6: =SUM(I4:I5) -> 1 | M6: =SUM(M4:M5) -> 2 | P6: 1 | Q6: 5/7 | R6: 1/1 | S6: 1/3 | T6: 3/3 | V6: 71.4 %
B7: Ikä ensimmäisessä ottelussa | C7: 24 v 6 kk 23 pv
